[Event "Titled Tuesday Blitz July 4 Late 2023"]
[White "Bazilius, Augustinas"]
[Black "Hajiyev, Kanan"]
[WhiteFideId "12832251"]
[BlackFideId "13404148"]
[WhiteElo "2362"]
[BlackElo "2516"]
[Result "1-0"]
[Round "6"]
[TimeControl "180+2"]
[Date "2023.07.04"]
[WhiteClock "0:00:07"]
[BlackClock "0:00:06"]
[Board "100"]

1. d4 {[%clk 0:02:55]}  Nf6 {[%clk 0:02:57]} 2. c4 {[%clk 0:02:56]}  e6 {[%clk 0:02:58]} 3. Nf3 {[%clk 0:02:56]}  Bb4+ {[%clk 0:02:58]} 4. Bd2 {[%clk 0:02:56]}  Bxd2+ {[%clk 0:02:53]} 5. Qxd2 {[%clk 0:02:53]}  O-O {[%clk 0:02:54]} 6. g3 {[%clk 0:02:47]}  b6 {[%clk 0:02:55]} 7. Bg2 {[%clk 0:02:47]}  Bb7 {[%clk 0:02:55]} 8. Nc3 {[%clk 0:02:47]}  d6 {[%clk 0:02:56]} 9. O-O {[%clk 0:02:46]}  Nbd7 {[%clk 0:02:57]} 10. Qc2 {[%clk 0:02:28]}  Re8 {[%clk 0:02:56]} 11. e4 {[%clk 0:02:28]}  e5 {[%clk 0:02:56]} 12. Rfe1 {[%clk 0:02:19]}  Ba6 {[%clk 0:02:47]} 13. b3 {[%clk 0:02:16]}  Qe7 {[%clk 0:02:47]} 14. Nd5 {[%clk 0:02:09]}  Qd8 {[%clk 0:02:43]} 15. Rad1 {[%clk 0:01:58]}  c6 {[%clk 0:02:37]} 16. Nxf6+ {[%clk 0:01:57]}  Qxf6 {[%clk 0:02:37]} 17. dxe5 {[%clk 0:01:55]}  Nxe5 {[%clk 0:02:36]} 18. Nxe5 {[%clk 0:01:53]}  dxe5 {[%clk 0:02:36]} 19. Rd7 {[%clk 0:01:46]}  Bc8 {[%clk 0:02:25]} 20. Rd3 {[%clk 0:01:30]}  Bg4 {[%clk 0:02:24]} 21. f3 {[%clk 0:01:30]}  Be6 {[%clk 0:02:24]} 22. Red1 {[%clk 0:01:29]}  h5 {[%clk 0:02:19]} 23. Rd6 {[%clk 0:01:25]}  c5 {[%clk 0:02:13]} 24. Qd3 {[%clk 0:01:08]}  h4 {[%clk 0:02:10]} 25. Kf2 {[%clk 0:01:07]}  Qg5 {[%clk 0:02:10]} 26. Qd2 {[%clk 0:00:51]}  Qxd2+ {[%clk 0:02:08]} 27. R1xd2 {[%clk 0:00:47]}  hxg3+ {[%clk 0:02:09]} 28. hxg3 {[%clk 0:00:47]}  Kf8 {[%clk 0:02:10]} 29. f4 {[%clk 0:00:45]}  f6 {[%clk 0:01:57]} 30. f5 {[%clk 0:00:40]}  Bc8 {[%clk 0:01:57]} 31. g4 {[%clk 0:00:32]}  Rb8 {[%clk 0:01:53]} 32. R6d5 {[%clk 0:00:13]}  Ke7 {[%clk 0:01:51]} 33. Kg3 {[%clk 0:00:11]}  Rb7 {[%clk 0:01:47]} 34. a4 {[%clk 0:00:08]}  Rc7 {[%clk 0:01:47]} 35. Rd6 {[%clk 0:00:07]}  Rd7 {[%clk 0:01:44]} 36. Rxd7+ {[%clk 0:00:07]}  Bxd7 {[%clk 0:01:45]} 37. Bf3 {[%clk 0:00:07]}  Bc6 {[%clk 0:01:45]} 38. g5 {[%clk 0:00:05]}  fxg5 {[%clk 0:01:44]} 39. Kg4 {[%clk 0:00:06]}  Rh8 {[%clk 0:01:32]} 40. Kxg5 {[%clk 0:00:06]}  Be8 {[%clk 0:01:31]} 41. Bg4 {[%clk 0:00:03]}  Rh1 {[%clk 0:01:27]} 42. Rd5 {[%clk 0:00:03]}  Rb1 {[%clk 0:01:22]} 43. Rxe5+ {[%clk 0:00:04]}  Kf8 {[%clk 0:01:18]} 44. f6 {[%clk 0:00:04]}  gxf6+ {[%clk 0:01:14]} 45. Kxf6 {[%clk 0:00:05]}  Rxb3 {[%clk 0:01:13]} 46. Rg5 {[%clk 0:00:05]}  Rc3 {[%clk 0:01:03]} 47. Be6 {[%clk 0:00:03]}  Rf3+ {[%clk 0:01:04]} 48. Bf5 {[%clk 0:00:02]}  Bf7 {[%clk 0:01:00]} 49. e5 {[%clk 0:00:02]}  Bxc4 {[%clk 0:00:58]} 50. e6 {[%clk 0:00:03]}  Re3 {[%clk 0:00:23]} 51. Rh5 {[%clk 0:00:03]}  Bxe6 {[%clk 0:00:17]} 52. Bxe6 {[%clk 0:00:03]}  Rf3+ {[%clk 0:00:16]} 53. Rf5 {[%clk 0:00:03]}  Rxf5+ {[%clk 0:00:10]} 54. Kxf5 {[%clk 0:00:04]}  Ke8 {[%clk 0:00:11]} 55. Ke5 {[%clk 0:00:04]}  Kd8 {[%clk 0:00:11]} 56. Bc4 {[%clk 0:00:05]}  Kc7 {[%clk 0:00:12]} 57. Kd5 {[%clk 0:00:05]}  Kb7 {[%clk 0:00:12]} 58. Kd6 {[%clk 0:00:04]}  a6 {[%clk 0:00:11]} 59. Bd5+ {[%clk 0:00:05]}  Ka7 {[%clk 0:00:11]} 60. Kc6 {[%clk 0:00:05]}  b5 {[%clk 0:00:11]} 61. a5 {[%clk 0:00:05]}  c4 {[%clk 0:00:11]} 62. Kc5 {[%clk 0:00:05]}  Kb8 {[%clk 0:00:06]} 63. Be4 {[%clk 0:00:05]}  Kc7 {[%clk 0:00:05]} 64. Kb4 {[%clk 0:00:05]}  Kd6 {[%clk 0:00:05]} 65. Bb7 {[%clk 0:00:05]}  Ke5 {[%clk 0:00:04]} 66. Bxa6 {[%clk 0:00:05]}  Kd4 {[%clk 0:00:05]} 67. Bxb5 {[%clk 0:00:06]}  c3 {[%clk 0:00:05]} 68. Ba4 {[%clk 0:00:06]}  Kd3 {[%clk 0:00:05]} 69. a6 {[%clk 0:00:07]}  Kd2 {[%clk 0:00:06]} 70. a7 {[%clk 0:00:07]}  Kc1 {[%clk 0:00:05]} 71. Kxc3 {[%clk 0:00:06]}  Kb1 {[%clk 0:00:06]} 72. a8=Q {[%clk 0:00:07]}  Kc1 {[%clk 0:00:06]} 73. Qh1# {[%clk 0:00:07]} 1-0


[Site "https://www.chess.com"]

[Event "Titled Tuesday Blitz July 4 Late 2023"]
[White "Toniutti, Ezio"]
[Black "Slovineanu, Viacheslav"]
[WhiteFideId "113034"]
[BlackFideId "13900510"]
[WhiteElo "2487"]
[BlackElo "2350"]
[Result "1-0"]
[Round "6"]
[TimeControl "180+2"]
[Date "2023.07.04"]
[WhiteClock "0:01:16"]
[BlackClock "0:00:00"]
[Board "104"]

1. d4 {[%clk 0:03:00]}  Nf6 {[%clk 0:02:59]} 2. c4 {[%clk 0:02:59]}  e6 {[%clk 0:02:59]} 3. g3 {[%clk 0:02:56]}  c5 {[%clk 0:02:58]} 4. d5 {[%clk 0:02:56]}  exd5 {[%clk 0:02:57]} 5. cxd5 {[%clk 0:02:56]}  d6 {[%clk 0:02:57]} 6. Nc3 {[%clk 0:02:52]}  g6 {[%clk 0:02:57]} 7. Nf3 {[%clk 0:02:51]}  Bg7 {[%clk 0:02:57]} 8. Bg2 {[%clk 0:02:51]}  O-O {[%clk 0:02:57]} 9. O-O {[%clk 0:02:51]}  Re8 {[%clk 0:02:57]} 10. Bf4 {[%clk 0:02:50]}  h6 {[%clk 0:02:57]} 11. Re1 {[%clk 0:02:48]}  g5 {[%clk 0:02:51]} 12. Bd2 {[%clk 0:02:47]}  Bf5 {[%clk 0:02:49]} 13. h4 {[%clk 0:02:43]}  g4 {[%clk 0:02:48]} 14. Nh2 {[%clk 0:02:42]}  Nbd7 {[%clk 0:02:43]} 15. e4 {[%clk 0:02:42]}  Bg6 {[%clk 0:02:24]} 16. Nxg4 {[%clk 0:02:41]}  h5 {[%clk 0:02:05]} 17. Nxf6+ {[%clk 0:02:38]}  Nxf6 {[%clk 0:02:05]} 18. Bg5 {[%clk 0:02:37]}  Rb8 {[%clk 0:01:54]} 19. a4 {[%clk 0:02:36]}  a6 {[%clk 0:01:54]} 20. Qf3 {[%clk 0:02:31]}  b5 {[%clk 0:01:48]} 21. axb5 {[%clk 0:02:29]}  axb5 {[%clk 0:01:48]} 22. Qf4 {[%clk 0:02:13]}  b4 {[%clk 0:01:39]} 23. Na4 {[%clk 0:02:12]}  Qe7 {[%clk 0:01:40]} 24. b3 {[%clk 0:02:04]}  Rbd8 {[%clk 0:01:09]} 25. Rad1 {[%clk 0:02:01]}  Qe5 {[%clk 0:01:08]} 26. Qxe5 {[%clk 0:02:00]}  Rxe5 {[%clk 0:01:08]} 27. f4 {[%clk 0:01:54]}  Rxg5 {[%clk 0:00:52]} 28. hxg5 {[%clk 0:01:49]}  Ng4 {[%clk 0:00:52]} 29. Nb6 {[%clk 0:01:45]}  Bd4+ {[%clk 0:00:44]} 30. Rxd4 {[%clk 0:01:45]}  cxd4 {[%clk 0:00:44]} 31. Nc4 {[%clk 0:01:44]}  Ra8 {[%clk 0:00:39]} 32. f5 {[%clk 0:01:32]}  Bh7 {[%clk 0:00:38]} 33. Nxd6 {[%clk 0:01:33]}  Ra2 {[%clk 0:00:37]} 34. Bf1 {[%clk 0:01:30]}  Ne3 {[%clk 0:00:30]} 35. Nb5 {[%clk 0:01:25]}  Bxf5 {[%clk 0:00:05]} 36. exf5 {[%clk 0:01:19]}  Nxf5 {[%clk 0:00:05]} 37. d6 {[%clk 0:01:18]}  Ra8 {[%clk 0:00:02]} 38. d7 {[%clk 0:01:16]}  Kg7 {[%clk 0:00:00]} 39. Re8 {[%clk 0:01:16]} 1-0


[Site "https://www.chess.com"]

[Event "Titled Tuesday Blitz July 4 Late 2023"]
[White "Cardozo Munar, Carlos Eduardo"]
[Black "Martinez Reyes, Pedro Ramon"]
[WhiteFideId "4409477"]
[BlackFideId "3901807"]
[WhiteElo "2346"]
[BlackElo "2484"]
[Result "0-1"]
[Round "6"]
[TimeControl "180+2"]
[Date "2023.07.04"]
[WhiteClock "0:00:00"]
[BlackClock "0:01:02"]
[Board "106"]

1. d4 {[%clk 0:03:00]}  Nf6 {[%clk 0:02:55]} 2. Bg5 {[%clk 0:03:01]}  c5 {[%clk 0:02:50]} 3. d5 {[%clk 0:03:00]}  Qa5+ {[%clk 0:02:49]} 4. c3 {[%clk 0:02:56]}  Ne4 {[%clk 0:02:48]} 5. h4 {[%clk 0:02:53]}  Qb6 {[%clk 0:02:46]} 6. Qc2 {[%clk 0:02:45]}  Nxg5 {[%clk 0:02:41]} 7. hxg5 {[%clk 0:02:46]}  g6 {[%clk 0:02:38]} 8. Nd2 {[%clk 0:02:46]}  d6 {[%clk 0:02:36]} 9. Ngf3 {[%clk 0:02:46]}  Bg7 {[%clk 0:02:35]} 10. e4 {[%clk 0:02:42]}  e5 {[%clk 0:02:26]} 11. dxe6 {[%clk 0:02:41]}  Bxe6 {[%clk 0:02:25]} 12. Bc4 {[%clk 0:02:42]}  Nd7 {[%clk 0:02:15]} 13. O-O-O {[%clk 0:02:31]}  Bg4 {[%clk 0:02:03]} 14. Bd5 {[%clk 0:02:18]}  Qa6 {[%clk 0:01:56]} 15. Nc4 {[%clk 0:02:16]}  O-O {[%clk 0:01:51]} 16. Kb1 {[%clk 0:02:08]}  Ne5 {[%clk 0:01:41]} 17. Nxd6 {[%clk 0:02:03]}  Nxf3 {[%clk 0:01:38]} 18. gxf3 {[%clk 0:01:53]}  Bxf3 {[%clk 0:01:39]} 19. Qb3 {[%clk 0:01:36]}  Bxh1 {[%clk 0:01:33]} 20. Nxf7 {[%clk 0:01:36]}  Bxe4+ {[%clk 0:01:31]} 21. Bxe4 {[%clk 0:01:24]}  Rxf7 {[%clk 0:01:32]} 22. Bd5 {[%clk 0:01:25]}  Rf8 {[%clk 0:01:29]} 23. a3 {[%clk 0:01:04]}  Qe2 {[%clk 0:01:26]} 24. Ka2 {[%clk 0:00:43]}  Qxf2 {[%clk 0:01:26]} 25. Qxb7 {[%clk 0:00:40]}  Kh8 {[%clk 0:01:22]} 26. Bxf7 {[%clk 0:00:34]}  Qxf7+ {[%clk 0:01:23]} 27. Qxf7 {[%clk 0:00:28]}  Rxf7 {[%clk 0:01:24]} 28. Rd8+ {[%clk 0:00:27]}  Bf8 {[%clk 0:01:24]} 29. b4 {[%clk 0:00:21]}  Kg8 {[%clk 0:01:25]} 30. b5 {[%clk 0:00:18]}  c4 {[%clk 0:01:23]} 31. a4 {[%clk 0:00:18]}  Rf2+ {[%clk 0:01:23]} 32. Kb1 {[%clk 0:00:18]}  Kf7 {[%clk 0:01:19]} 33. Rd7+ {[%clk 0:00:19]}  Ke6 {[%clk 0:01:18]} 34. Rxh7 {[%clk 0:00:18]}  Bc5 {[%clk 0:01:15]} 35. Rc7 {[%clk 0:00:18]}  Kd5 {[%clk 0:01:13]} 36. Rc6 {[%clk 0:00:16]}  Rf3 {[%clk 0:01:10]} 37. Kc2 {[%clk 0:00:16]}  Rf2+ {[%clk 0:01:09]} 38. Kd1 {[%clk 0:00:16]}  Rf3 {[%clk 0:01:06]} 39. Kc2 {[%clk 0:00:16]}  Ba3 {[%clk 0:01:05]} 40. Rxg6 {[%clk 0:00:13]}  Rf2+ {[%clk 0:01:05]} 41. Kd1 {[%clk 0:00:13]}  Ke4 {[%clk 0:01:05]} 42. Rg8 {[%clk 0:00:11]}  Kd3 {[%clk 0:01:06]} 43. Rd8+ {[%clk 0:00:10]}  Kxc3 {[%clk 0:01:06]} 44. g6 {[%clk 0:00:11]}  Rg2 {[%clk 0:01:05]} 45. a5 {[%clk 0:00:09]}  Bc5 {[%clk 0:01:03]} 46. b6 {[%clk 0:00:08]}  axb6 {[%clk 0:01:04]} 47. a6 {[%clk 0:00:08]}  b5 {[%clk 0:01:05]} 48. Rc8 {[%clk 0:00:08]}  Bd4 {[%clk 0:01:04]} 49. Rd8 {[%clk 0:00:08]}  Rxg6 {[%clk 0:01:04]} 50. Ra8 {[%clk 0:00:00]}  b4 {[%clk 0:01:02]} 0-1


[Site "https://www.chess.com"]

[Event "Titled Tuesday Blitz July 4 Late 2023"]
[White "Erzhanov, Arman"]
[Black "The_Straightforward_Rook"]
[WhiteFideId "4138821"]
[WhiteElo "2479"]
[BlackElo "2341"]
[Result "1-0"]
[Round "6"]
[TimeControl "180+2"]
[Date "2023.07.04"]
[WhiteClock "0:00:36"]
[BlackClock "0:00:30"]
[Board "107"]

1. e4 {[%clk 0:02:59]}  e5 {[%clk 0:02:59]} 2. Nf3 {[%clk 0:02:58]}  Nc6 {[%clk 0:03:00]} 3. Bb5 {[%clk 0:02:58]}  Nf6 {[%clk 0:03:00]} 4. O-O {[%clk 0:02:57]}  Nxe4 {[%clk 0:03:00]} 5. Re1 {[%clk 0:02:56]}  Nd6 {[%clk 0:03:00]} 6. Nxe5 {[%clk 0:02:56]}  Nxe5 {[%clk 0:03:01]} 7. Rxe5+ {[%clk 0:02:56]}  Be7 {[%clk 0:03:02]} 8. Bf1 {[%clk 0:02:56]}  O-O {[%clk 0:03:02]} 9. d4 {[%clk 0:02:56]}  Bf6 {[%clk 0:03:02]} 10. Re1 {[%clk 0:02:56]}  Re8 {[%clk 0:03:03]} 11. Rxe8+ {[%clk 0:02:56]}  Nxe8 {[%clk 0:03:04]} 12. c3 {[%clk 0:02:55]}  d5 {[%clk 0:03:03]} 13. Bf4 {[%clk 0:02:56]}  c6 {[%clk 0:03:03]} 14. Bd3 {[%clk 0:02:56]}  Nd6 {[%clk 0:03:00]} 15. Nd2 {[%clk 0:02:55]}  Bf5 {[%clk 0:02:59]} 16. Bxf5 {[%clk 0:02:54]}  Nxf5 {[%clk 0:03:00]} 17. Qg4 {[%clk 0:02:50]}  g6 {[%clk 0:02:57]} 18. Re1 {[%clk 0:02:51]}  Qf8 {[%clk 0:02:53]} 19. Qe2 {[%clk 0:02:44]}  h5 {[%clk 0:02:52]} 20. Nf3 {[%clk 0:02:43]}  a5 {[%clk 0:02:51]} 21. h3 {[%clk 0:02:42]}  a4 {[%clk 0:02:50]} 22. a3 {[%clk 0:02:41]}  Nd6 {[%clk 0:02:46]} 23. Bxd6 {[%clk 0:02:39]}  Qxd6 {[%clk 0:02:46]} 24. g3 {[%clk 0:02:38]}  b5 {[%clk 0:02:40]} 25. h4 {[%clk 0:02:37]}  Kg7 {[%clk 0:02:39]} 26. Kg2 {[%clk 0:02:37]}  Ra7 {[%clk 0:02:34]} 27. Qd2 {[%clk 0:02:36]}  Re7 {[%clk 0:02:32]} 28. Rxe7 {[%clk 0:02:36]}  Qxe7 {[%clk 0:02:33]} 29. Ne1 {[%clk 0:02:36]}  g5 {[%clk 0:02:29]} 30. hxg5 {[%clk 0:02:35]}  Bxg5 {[%clk 0:02:30]} 31. Qd1 {[%clk 0:02:34]}  Qe4+ {[%clk 0:02:27]} 32. Nf3 {[%clk 0:02:32]}  Bh6 {[%clk 0:02:22]} 33. Kg1 {[%clk 0:02:28]}  f6 {[%clk 0:02:15]} 34. Nh4 {[%clk 0:02:27]}  Bg5 {[%clk 0:01:56]} 35. Ng2 {[%clk 0:01:55]}  h4 {[%clk 0:01:38]} 36. gxh4 {[%clk 0:01:54]}  Bxh4 {[%clk 0:01:39]} 37. Qh5 {[%clk 0:01:26]}  Bg5 {[%clk 0:01:30]} 38. Qd1 {[%clk 0:01:17]}  Qg6 {[%clk 0:01:19]} 39. Kf1 {[%clk 0:01:12]}  Qf5 {[%clk 0:01:17]} 40. Kg1 {[%clk 0:01:07]}  Bf4 {[%clk 0:01:13]} 41. Nxf4 {[%clk 0:01:05]}  Qxf4 {[%clk 0:01:14]} 42. Qe2 {[%clk 0:01:03]}  Qg5+ {[%clk 0:01:12]} 43. Kf1 {[%clk 0:01:02]}  Qc1+ {[%clk 0:01:11]} 44. Kg2 {[%clk 0:01:02]}  Qg5+ {[%clk 0:01:12]} 45. Kh3 {[%clk 0:01:01]}  Qf5+ {[%clk 0:01:10]} 46. Qg4+ {[%clk 0:00:59]}  Qxg4+ {[%clk 0:01:08]} 47. Kxg4 {[%clk 0:01:00]}  Kg6 {[%clk 0:01:09]} 48. Kf4 {[%clk 0:01:00]}  f5 {[%clk 0:01:00]} 49. Ke5 {[%clk 0:00:43]}  Kg5 {[%clk 0:00:58]} 50. Kd6 {[%clk 0:00:36]}  Kf4 {[%clk 0:00:55]} 51. Kxc6 {[%clk 0:00:36]}  Kf3 {[%clk 0:00:30]} 52. Kxd5 {[%clk 0:00:36]} 1-0


[Site "https://www.chess.com"]

[Event "Titled Tuesday Blitz July 4 Late 2023"]
[White "Haitin, Ilja"]
[Black "Avila Rodriguez, Joshua Ad"]
[WhiteFideId "4501764"]
[BlackFideId "5126444"]
[WhiteElo "2338"]
[BlackElo "2455"]
[Result "0-1"]
[Round "6"]
[TimeControl "180+2"]
[Date "2023.07.04"]
[WhiteClock "0:00:00"]
[BlackClock "0:00:27"]
[Board "110"]

1. Nf3 {[%clk 0:02:46]}  d5 {[%clk 0:02:58]} 2. e3 {[%clk 0:02:46]}  Nf6 {[%clk 0:02:58]} 3. b3 {[%clk 0:02:46]}  c5 {[%clk 0:02:59]} 4. Bb2 {[%clk 0:02:46]}  Nc6 {[%clk 0:02:59]} 5. Bb5 {[%clk 0:02:46]}  e6 {[%clk 0:02:59]} 6. Bxc6+ {[%clk 0:02:44]}  bxc6 {[%clk 0:02:59]} 7. d3 {[%clk 0:02:44]}  Bd6 {[%clk 0:02:58]} 8. Nbd2 {[%clk 0:02:43]}  Qc7 {[%clk 0:02:56]} 9. Qe2 {[%clk 0:02:43]}  O-O {[%clk 0:02:52]} 10. O-O {[%clk 0:02:43]}  Re8 {[%clk 0:02:51]} 11. e4 {[%clk 0:02:43]}  e5 {[%clk 0:02:51]} 12. c4 {[%clk 0:02:42]}  a5 {[%clk 0:02:41]} 13. Nb1 {[%clk 0:02:22]}  a4 {[%clk 0:02:38]} 14. Nc3 {[%clk 0:02:21]}  axb3 {[%clk 0:02:32]} 15. axb3 {[%clk 0:02:22]}  Rb8 {[%clk 0:02:32]} 16. Ra3 {[%clk 0:02:19]}  d4 {[%clk 0:02:27]} 17. Na4 {[%clk 0:02:19]}  Bg4 {[%clk 0:02:24]} 18. h3 {[%clk 0:02:18]}  Bxf3 {[%clk 0:02:12]} 19. Qxf3 {[%clk 0:02:19]}  Rb4 {[%clk 0:02:10]} 20. Rb1 {[%clk 0:01:46]}  Reb8 {[%clk 0:02:08]} 21. Bc1 {[%clk 0:01:45]}  Nd7 {[%clk 0:01:54]} 22. Bd2 {[%clk 0:01:44]}  R4b7 {[%clk 0:01:54]} 23. Qd1 {[%clk 0:01:36]}  Bf8 {[%clk 0:01:53]} 24. g3 {[%clk 0:01:18]}  Ra7 {[%clk 0:01:52]} 25. Kg2 {[%clk 0:01:17]}  Nb6 {[%clk 0:01:47]} 26. Rba1 {[%clk 0:01:15]}  Rba8 {[%clk 0:01:40]} 27. Nxb6 {[%clk 0:01:10]}  Qxb6 {[%clk 0:01:40]} 28. Rxa7 {[%clk 0:00:54]}  Rxa7 {[%clk 0:01:41]} 29. Rxa7 {[%clk 0:00:53]}  Qxa7 {[%clk 0:01:42]} 30. Qb1 {[%clk 0:00:40]}  Qa3 {[%clk 0:01:38]} 31. Bc1 {[%clk 0:00:39]}  Qa5 {[%clk 0:01:38]} 32. Kf1 {[%clk 0:00:36]}  h5 {[%clk 0:01:35]} 33. Ke2 {[%clk 0:00:35]}  g6 {[%clk 0:01:35]} 34. Bd2 {[%clk 0:00:35]}  Qa3 {[%clk 0:01:35]} 35. Bc1 {[%clk 0:00:35]}  Qa8 {[%clk 0:01:33]} 36. Bd2 {[%clk 0:00:31]}  Qc8 {[%clk 0:01:33]} 37. Qh1 {[%clk 0:00:24]}  Qb7 {[%clk 0:01:31]} 38. Qb1 {[%clk 0:00:23]}  Kh7 {[%clk 0:01:32]} 39. Qa2 {[%clk 0:00:19]}  Qc8 {[%clk 0:01:31]} 40. h4 {[%clk 0:00:19]}  Qg4+ {[%clk 0:01:30]} 41. Ke1 {[%clk 0:00:19]}  Qf3 {[%clk 0:01:30]} 42. Qb1 {[%clk 0:00:17]}  f5 {[%clk 0:01:28]} 43. Qd1 {[%clk 0:00:15]}  Qxd3 {[%clk 0:01:23]} 44. exf5 {[%clk 0:00:14]}  Qxf5 {[%clk 0:01:23]} 45. Qe2 {[%clk 0:00:10]}  Qb1+ {[%clk 0:01:17]} 46. Qd1 {[%clk 0:00:10]}  Qf5 {[%clk 0:01:02]} 47. Bg5 {[%clk 0:00:10]}  Bd6 {[%clk 0:00:59]} 48. Qa1 {[%clk 0:00:09]}  Qe4+ {[%clk 0:00:58]} 49. Kd2 {[%clk 0:00:07]}  Qf3 {[%clk 0:00:53]} 50. Qa7+ {[%clk 0:00:06]}  Kg8 {[%clk 0:00:54]} 51. Qd7 {[%clk 0:00:05]}  Qxf2+ {[%clk 0:00:52]} 52. Kd3 {[%clk 0:00:05]}  Qf5+ {[%clk 0:00:35]} 53. Qxf5 {[%clk 0:00:03]}  gxf5 {[%clk 0:00:36]} 54. Bd8 {[%clk 0:00:02]}  e4+ {[%clk 0:00:36]} 55. Ke2 {[%clk 0:00:01]}  Bxg3 {[%clk 0:00:35]} 56. Be7 {[%clk 0:00:02]}  d3+ {[%clk 0:00:31]} 57. Ke3 {[%clk 0:00:00]}  Bf4+ {[%clk 0:00:27]} 0-1


[Site "https://www.chess.com"]

[Event "Titled Tuesday Blitz July 4 Late 2023"]
[White "Koc, Przemyslaw"]
[Black "Vasques, Antonio Pedro Freixial"]
[WhiteFideId "1109081"]
[BlackFideId "1908332"]
[WhiteElo "2454"]
[BlackElo "2338"]
[Result "1-0"]
[Round "6"]
[TimeControl "180+2"]
[Date "2023.07.04"]
[WhiteClock "0:02:03"]
[BlackClock "0:00:55"]
[Board "111"]

1. Nf3 {[%clk 0:02:57]}  Nf6 {[%clk 0:02:59]} 2. g3 {[%clk 0:02:57]}  d5 {[%clk 0:02:58]} 3. Bg2 {[%clk 0:02:57]}  c5 {[%clk 0:02:59]} 4. O-O {[%clk 0:02:55]}  Nc6 {[%clk 0:02:58]} 5. d4 {[%clk 0:02:55]}  e6 {[%clk 0:02:55]} 6. c4 {[%clk 0:02:54]}  dxc4 {[%clk 0:02:45]} 7. dxc5 {[%clk 0:02:53]}  Qxd1 {[%clk 0:02:44]} 8. Rxd1 {[%clk 0:02:54]}  Bxc5 {[%clk 0:02:44]} 9. Nbd2 {[%clk 0:02:55]}  c3 {[%clk 0:02:37]} 10. bxc3 {[%clk 0:02:54]}  Ke7 {[%clk 0:02:36]} 11. Nb3 {[%clk 0:02:54]}  Bd6 {[%clk 0:02:34]} 12. c4 {[%clk 0:02:52]}  Bd7 {[%clk 0:02:32]} 13. c5 {[%clk 0:02:43]}  Bc7 {[%clk 0:02:32]} 14. Bb2 {[%clk 0:02:36]}  Rad8 {[%clk 0:02:27]} 15. Nfd4 {[%clk 0:02:31]}  e5 {[%clk 0:02:12]} 16. Nb5 {[%clk 0:02:28]}  Bb8 {[%clk 0:02:08]} 17. Nd6 {[%clk 0:02:18]}  Be6 {[%clk 0:01:07]} 18. Nxb7 {[%clk 0:02:14]}  Rxd1+ {[%clk 0:01:05]} 19. Rxd1 {[%clk 0:02:15]}  Rc8 {[%clk 0:01:04]} 20. Nd6 {[%clk 0:02:05]}  Rd8 {[%clk 0:00:55]} 21. Bxc6 {[%clk 0:02:03]} 1-0


[Site "https://www.chess.com"]

[Event "Titled Tuesday Blitz July 4 Late 2023"]
[White "Pein, Jonathan"]
[Black "Kovacevic, Radmila"]
[WhiteFideId "417092"]
[BlackFideId "933171"]
[WhiteElo "2422"]
[BlackElo "2244"]
[Result "1-0"]
[Round "6"]
[TimeControl "180+2"]
[Date "2023.07.04"]
[WhiteClock "0:01:29"]
[BlackClock "0:00:16"]
[Board "119"]

1. d4 {[%clk 0:03:00]}  e5 {[%clk 0:02:59]} 2. dxe5 {[%clk 0:03:00]}  Nc6 {[%clk 0:02:57]} 3. Nf3 {[%clk 0:03:00]}  Qe7 {[%clk 0:02:56]} 4. Bf4 {[%clk 0:02:49]}  Qb4+ {[%clk 0:02:55]} 5. Bd2 {[%clk 0:02:46]}  Qxb2 {[%clk 0:02:54]} 6. Nc3 {[%clk 0:02:42]}  Bb4 {[%clk 0:02:54]} 7. Rb1 {[%clk 0:02:37]}  Qxc3 {[%clk 0:02:53]} 8. Bxc3 {[%clk 0:02:36]}  Bxc3+ {[%clk 0:02:54]} 9. Nd2 {[%clk 0:02:37]}  Bxe5 {[%clk 0:02:53]} 10. e3 {[%clk 0:02:36]}  Nf6 {[%clk 0:02:53]} 11. Bd3 {[%clk 0:02:33]}  Bc3 {[%clk 0:02:49]} 12. O-O {[%clk 0:02:33]}  d5 {[%clk 0:02:49]} 13. e4 {[%clk 0:02:33]}  d4 {[%clk 0:02:41]} 14. e5 {[%clk 0:02:31]}  Nd5 {[%clk 0:02:36]} 15. Ne4 {[%clk 0:02:28]}  O-O {[%clk 0:02:06]} 16. Nxc3 {[%clk 0:02:27]}  Nxc3 {[%clk 0:02:02]} 17. Qh5 {[%clk 0:02:24]}  g6 {[%clk 0:02:00]} 18. Qg5 {[%clk 0:02:24]}  Nxb1 {[%clk 0:01:58]} 19. Rxb1 {[%clk 0:02:25]}  Re8 {[%clk 0:01:55]} 20. f4 {[%clk 0:02:25]}  Ne7 {[%clk 0:01:47]} 21. h4 {[%clk 0:02:23]}  b6 {[%clk 0:01:39]} 22. Be4 {[%clk 0:02:20]}  c6 {[%clk 0:01:37]} 23. h5 {[%clk 0:02:19]}  Bf5 {[%clk 0:01:36]} 24. Bxf5 {[%clk 0:02:09]}  Nxf5 {[%clk 0:01:35]} 25. g4 {[%clk 0:02:05]}  Ne3 {[%clk 0:01:23]} 26. h6 {[%clk 0:01:59]}  Re6 {[%clk 0:01:11]} 27. f5 {[%clk 0:01:59]}  f6 {[%clk 0:00:45]} 28. exf6 {[%clk 0:01:51]}  Re5 {[%clk 0:00:44]} 29. f7+ {[%clk 0:01:42]}  Kf8 {[%clk 0:00:38]} 30. Qf6 {[%clk 0:01:41]}  Rxf5 {[%clk 0:00:20]} 31. gxf5 {[%clk 0:01:38]}  Nxf5 {[%clk 0:00:21]} 32. Qh8+ {[%clk 0:01:33]}  Kxf7 {[%clk 0:00:21]} 33. Qxa8 {[%clk 0:01:33]}  c5 {[%clk 0:00:21]} 34. Qxa7+ {[%clk 0:01:32]}  Kf6 {[%clk 0:00:21]} 35. Qxh7 {[%clk 0:01:31]}  Kg5 {[%clk 0:00:21]} 36. Rf1 {[%clk 0:01:31]}  Nxh6 {[%clk 0:00:21]} 37. Qe7+ {[%clk 0:01:30]}  Kh5 {[%clk 0:00:22]} 38. Qc7 {[%clk 0:01:29]}  Ng4 {[%clk 0:00:18]} 39. Qxb6 {[%clk 0:01:30]}  Ne3 {[%clk 0:00:18]} 40. Qxc5+ {[%clk 0:01:30]}  g5 {[%clk 0:00:18]} 41. Qxd4 {[%clk 0:01:28]}  Ng4 {[%clk 0:00:18]} 42. Qxg4+ {[%clk 0:01:28]}  Kxg4 {[%clk 0:00:16]} 43. c4 {[%clk 0:01:29]} 1-0


[Site "https://www.chess.com"]